bitfinex-derivatives/quotes_BTCF0:USTF0_20251009
["timestamp","ask_amount","ask_price","bid_price","bid_amount"]
[1760013963964,0.67651966,123540.0,123530.0,0.01523071]
[1760013964272,1.03731966,123540.0,123530.0,0.002]
[1760013964770,1.34731966,123540.0,123530.0,0.002]
[1760013965466,0.848973,123540.0,123530.0,0.002]
[1760013965674,1.09814633,123540.0,123530.0,0.002]
[1760013965872,0.73734633,123540.0,123530.0,0.002]
[1760013966862,0.1182596,123530.0,123520.0,1.14166539]
[1760013967068,0.67743293,123530.0,123520.0,1.14166539]
[1760013968173,0.67743293,123530.0,123520.0,1.20835452]
[1760013970975,0.4282596,123530.0,123520.0,1.20835452]
[1760013971174,0.67743293,123530.0,123520.0,1.20835452]
[1760013971474,0.98771626,123530.0,123520.0,1.20831452]
[1760013971680,0.98771626,123530.0,123520.0,0.94808653]
[1760013971976,0.98771626,123530.0,123520.0,0.06678289]
[1760013971977,1.38771626,123530.0,123520.0,0.06678289]
[1760013972172,1.74851626,123530.0,123520.0,0.06678289]
[1760013972371,1.74851626,123530.0,123520.0,6e-08]
[1760013972574,1.74851626,123530.0,123480.0,0.46137201]
[1760013972575,0.1793958,123490.0,123480.0,0.46137201]
[1760013972880,0.69856913,123490.0,123480.0,0.3608]
[1760013973376,0.69856913,123490.0,123480.0,0.87613965]
[1760013973377,0.61762333,123490.0,123480.0,0.87613965]
[1760013973578,9.53e-05,123490.0,123480.0,1.01942896]
[1760013973770,9.53e-05,123490.0,123480.0,1.76670896]
[1760013973974,9.53e-05,123490.0,123480.0,2.01588229]
[1760013974175,0.24917333,123510.0,123500.0,0.0809392]
[1760013974375,0.24917333,123510.0,123500.0,1.1890192]
[1760013974684,0.03734,123520.0,123510.0,0.0809327]
[1760013974880,0.1182661,123520.0,123510.0,0.50517112]
[1760013975878,0.67772276,123520.0,123510.0,1.17155842]
[1760013976179,0.94772276,123520.0,123510.0,0.42423842]
[1760013976679,1.69504276,123520.0,123510.0,0.52483857]
[1760013976982,1.69504276,123520.0,123510.0,0.52303857]
[1760013977371,1.69500276,123520.0,123510.0,0.52303857]
[1760013978280,0.94772276,123520.0,123510.0,0.52303857]
[1760013978783,0.94772276,123520.0,123510.0,0.42243842]
[1760013979081,1.69500276,123520.0,123510.0,0.42243842]
[1760013979480,0.94772276,123520.0,123510.0,0.42243842]
[1760013979881,1.69500276,123520.0,123510.0,0.42243842]
[1760013980273,0.94772276,123520.0,123510.0,0.42243842]
[1760013980582,1.69500276,123520.0,123510.0,0.06343842]
[1760013980783,0.1793827,123510.0,123500.0,0.3628]
[1760013981088,0.70855603,123510.0,123500.0,0.3628]
[1760013981678,0.70855603,123510.0,123500.0,0.3608]
[1760013982583,0.70855603,123510.0,123500.0,0.3628]
[1760013984183,0.95772936,123510.0,123500.0,0.06428524]
[1760013984379,0.95772936,123510.0,123490.0,0.46140015]
[1760013984380,0.1751792,123500.0,123490.0,0.3608]
[1760013984685,0.60011253,123500.0,123490.0,0.4417458]
[1760013984879,0.60011253,123500.0,123490.0,1.1890258]
[1760013985086,0.60011253,123500.0,123490.0,1.28966173]
[1760013985581,0.33010823,123510.0,123500.0,0.0809343]
[1760013985776,0.57010823,123510.0,123500.0,1.10808]
[1760013986083,0.66434823,123510.0,123500.0,1.10808]
[1760013986289,0.66434823,123510.0,123500.0,0.3608]
[1760013986586,0.66434823,123510.0,123500.0,1.10808]
[1760013987392,0.66434823,123510.0,123500.0,1.25136931]
[1760013987784,0.66434823,123510.0,123500.0,1.31582292]
[1760013987986,0.66434823,123510.0,123500.0,0.56854292]
[1760013988183,0.66434823,123510.0,123500.0,0.42525361]
[1760013988384,0.66434823,123510.0,123500.0,0.42625361]
[1760013988784,0.66434823,123510.0,123500.0,0.52691053]
[1760013989184,0.66434823,123510.0,123500.0,0.42625361]
[1760013989689,1.41158823,123510.0,123500.0,0.42625361]
[1760013990388,0.66434823,123510.0,123500.0,0.42600361]
[1760013990589,1.41158823,123510.0,123500.0,0.42600361]
[1760013991790,0.1155423,123480.0,123470.0,0.3608]
[1760013991990,0.94353896,123480.0,123470.0,1.10804]
[1760013992191,0.94353896,123480.0,123470.0,1.25132931]
[1760013992686,0.69436563,123480.0,123470.0,1.43760541]
[1760013992888,0.94353896,123480.0,123470.0,0.3659346]
[1760013993092,0.94353896,123480.0,123470.0,0.96988529]
[1760013993494,0.94353896,123480.0,123470.0,0.22264529]
[1760013993990,1.28433896,123480.0,123470.0,0.1882761]
[1760013994188,2.03157896,123480.0,123470.0,0.1111547]
[1760013994388,0.1751989,123470.0,123460.0,0.14381338]
[1760013994590,1.44161223,123470.0,123460.0,0.14381338]
[1760013994786,0.70437223,123470.0,123460.0,0.14381338]
[1760013994988,0.175212,123450.0,123440.0,0.29344983]
[1760013995192,1.44162533,123450.0,123440.0,0.29344983]
[1760013995492,1.44162533,123450.0,123440.0,0.06418693]
[1760013995693,0.1155686,123440.0,123430.0,0.47522461]
[1760013995893,0.36474193,123440.0,123430.0,0.47522461]
[1760013996100,0.37697909,123440.0,123430.0,0.47522461]
[1760013996293,0.1155686,123440.0,123430.0,0.39424221]
[1760013996898,0.43662909,123440.0,123430.0,0.39424221]
[1760013997099,0.67662909,123440.0,123430.0,0.03344221]
[1760013997298,0.67662909,123440.0,123430.0,0.43344221]
[1760013997495,0.67662909,123440.0,123430.0,0.66270511]
[1760013997791,0.67662909,123440.0,123430.0,0.72715637]
[1760013998293,0.4152186,123440.0,123430.0,0.29680394]
[1760013998496,1.78470909,123440.0,123430.0,0.29680394]
[1760013998991,1.07742909,123440.0,123430.0,0.29680394]
[1760013999193,1.82470909,123440.0,123430.0,0.29680394]
[1760013999593,1.07742909,123440.0,123430.0,0.06754104]
[1760013999892,0.1752382,123410.0,123400.0,0.3608]
[1760014000097,0.43664869,123410.0,123400.0,0.3608]
[1760014000595,1.04744869,123410.0,123400.0,0.0635792]
[1760014000796,0.03459,123390.0,123380.0,0.3608]
[1760014001102,0.1156014,123390.0,123380.0,0.39467116]
[1760014001300,0.3756014,123390.0,123380.0,0.45996512]
[1760014001598,0.69666189,123390.0,123380.0,0.09916512]
[1760014001798,0.1156079,123380.0,123370.0,0.3608]
[1760014001995,0.71414207,123380.0,123370.0,0.3608]
[1760014002200,0.03459,123370.0,123360.0,0.4418311]
[1760014002397,6.13e-05,123370.0,123360.0,1.23598174]
[1760014002596,6.13e-05,123370.0,123360.0,1.58338174]
[1760014002796,6.13e-05,123370.0,123360.0,1.23598174]
[1760014003102,0.0810048,123400.0,123390.0,0.081007]
[1760014003300,0.34241529,123400.0,123390.0,1.0536914]
[1760014003496,0.26141049,123400.0,123390.0,1.5892514]
[1760014003797,0.34240899,123410.0,123400.0,0.0810048]
[1760014004000,4.788e-05,123410.0,123400.0,0.8418048]
[1760014004196,0.08104608,123410.0,123400.0,0.8418048]
[1760014004793,4.788e-05,123410.0,123400.0,1.5892848]
[1760014005002,0.08104608,123410.0,123400.0,1.5892848]
[1760014005196,0.08104608,123410.0,123400.0,1.5902848]
[1760014005495,0.08104608,123410.0,123400.0,1.77690454]
[1760014005896,0.08104608,123410.0,123400.0,0.94841974]
[1760014006102,0.37707657,123410.0,123400.0,1.69589974]
[1760014006302,0.37707657,123410.0,123400.0,1.77690454]
[1760014006503,0.29607837,123410.0,123400.0,1.5902848]
[1760014006707,0.29607837,123410.0,123400.0,0.8428048]
[1760014007000,0.08104608,123410.0,123400.0,0.8428048]
[1760014007196,4.788e-05,123410.0,123400.0,1.5903248]
[1760014007391,4.788e-05,123410.0,123400.0,0.8428048]
[1760014007598,0.29603049,123450.0,123430.0,0.0809851]
[1760014007899,0.37700249,123450.0,123440.0,0.50421005]
[1760014008094,0.37700249,123450.0,123440.0,0.58518865]
[1760014008294,0.1155792,123470.0,123440.0,0.58518865]
[1760014008295,0.03462,123470.0,123460.0,0.0809654]
[1760014008599,0.43478939,123470.0,123460.0,0.7216]
[1760014008803,0.43478939,123470.0,123460.0,0.3608]
[1760014010606,0.29603049,123470.0,123460.0,1.5500854]
[1760014010796,0.83478939,123470.0,123460.0,0.3608]
[1760014010996,0.1733854,123460.0,123450.0,0.50421005]
[1760014011192,0.43479589,123460.0,123450.0,0.3608]
[1760014011598,0.115592,123450.0,123440.0,0.38926113]
[1760014011800,0.37700249,123450.0,123440.0,1.10828]
[1760014011997,0.37700249,123450.0,123440.0,1.25169005]
[1760014012197,0.40798769,123450.0,123440.0,1.33266865]
[1760014012404,0.32701569,123450.0,123440.0,0.58518865]
[1760014012700,0.03462,123460.0,123440.0,0.58518865]
[1760014012701,0.32701569,123460.0,123440.0,0.90604331]
[1760014012902,0.115588,123460.0,123450.0,1.10828]
[1760014013106,0.03462,123470.0,123460.0,0.0809654]
[1760014013402,0.03462,123470.0,123460.0,0.4417654]
[1760014013605,0.1155789,123470.0,123460.0,0.50421005]
[1760014013801,0.1766689,123470.0,123460.0,0.89089005]
[1760014013999,0.46906459,123470.0,123460.0,0.50421005]
[1760014014199,0.46906459,123470.0,123460.0,0.58517545]
[1760014014396,0.32851569,123490.0,123460.0,1.50828]
[1760014014595,0.32851569,123500.0,123490.0,0.0809458]
[1760014014804,0.29239569,123500.0,123490.0,0.4417458]
[1760014015105,0.37333489,123500.0,123490.0,1.1892258]
[1760014015604,0.37333489,123500.0,123490.0,1.10824]
[1760014016106,0.0809458,123490.0,123480.0,0.4417493]
[1760014016296,0.37334149,123490.0,123480.0,1.1891893]
[1760014016503,0.40946149,123490.0,123480.0,2.38284]
[1760014016701,0.40946149,123490.0,123480.0,3.13024]
[1760014017298,0.001,123490.0,123480.0,1.1891523]
[1760014017504,0.29339569,123490.0,123480.0,1.1891123]
[1760014018103,0.29239569,123490.0,123480.0,0.4427523]
[1760014018308,0.29239569,123490.0,123480.0,3.2120323]
[1760014018505,0.29239569,123490.0,123480.0,3.27538266]
[1760014019211,0.1170595,123500.0,123490.0,0.0809458]
[1760014019403,0.40945519,123500.0,123490.0,0.4417458]
[1760014019804,0.40945519,123500.0,123490.0,1.10812]
[1760014020302,0.47054519,123500.0,123490.0,1.10812]
[1760014020497,0.47054519,123500.0,123490.0,1.1890658]
[1760014021209,0.47054519,123500.0,123490.0,0.3608]
[1760014021412,0.47054519,123500.0,123490.0,1.10812]
[1760014022607,0.40945519,123500.0,123490.0,1.1890658]
[1760014022809,0.32851569,123500.0,123490.0,0.4417458]
[1760014023008,0.32851569,123510.0,123500.0,0.0809392]
[1760014023216,0.32851569,123510.0,123500.0,0.4417392]
[1760014023416,0.40944839,123510.0,123500.0,0.4417392]
[1760014023910,0.37332839,123510.0,123500.0,1.1889792]
[1760014024307,0.37332839,123510.0,123500.0,0.4417392]
[1760014024612,0.41044839,123510.0,123500.0,1.1889792]
[1760014025112,0.1180527,123510.0,123500.0,1.1889792]
[1760014025306,0.41044839,123510.0,123500.0,1.1889792]
[1760014025514,0.41044839,123510.0,123500.0,1.1889392]
[1760014026212,0.1180527,123510.0,123500.0,1.1889392]
[1760014026411,0.41044839,123510.0,123500.0,0.4417392]
[1760014026609,0.41044839,123510.0,123500.0,1.1888992]
[1760014028710,0.41044839,123510.0,123500.0,0.3608]
[1760014028711,0.47153839,123510.0,123500.0,0.3608]
[1760014029019,0.47153839,123510.0,123500.0,1.10792]
[1760014029521,0.47153839,123510.0,123500.0,1.1888592]
[1760014030019,0.47153839,123510.0,123500.0,0.4417392]
[1760014030213,0.47153839,123510.0,123500.0,1.1888192]
[1760014032019,0.47153839,123510.0,123500.0,0.4417392]
[1760014032219,0.47153839,123510.0,123500.0,1.1888192]
[1760014032523,0.47153839,123510.0,123500.0,1.1887792]
[1760014032724,0.47153839,123510.0,123500.0,0.4417392]
[1760014033121,0.47153839,123510.0,123500.0,1.1887792]
[1760014033322,0.47153839,123510.0,123500.0,0.4417392]
[1760014033517,0.47153839,123510.0,123500.0,0.3608]
[1760014033820,0.1781558,123490.0,123480.0,0.42415036]
[1760014034024,0.47055149,123490.0,123480.0,0.42415036]
[1760014034225,0.47055149,123490.0,123480.0,1.17115036]
[1760014034424,0.03612,123490.0,123480.0,0.50510266]
[1760014034619,0.40945729,123500.0,123490.0,0.0809458]
[1760014034819,0.03712,123510.0,123490.0,0.0809458]
[1760014034820,0.41045149,123510.0,123500.0,0.0809392]
[1760014035125,0.41045149,123510.0,123500.0,1.1078]
[1760014035325,0.41045149,123510.0,123500.0,0.3608]
[1760014035523,0.41045149,123510.0,123500.0,1.1078]
[1760014035717,0.40945149,123510.0,123500.0,1.1078]
[1760014036225,0.1781492,123500.0,123490.0,0.3608]
[1760014036423,0.1170658,123490.0,123480.0,0.50609986]
[1760014036620,0.40946149,123490.0,123480.0,0.50509986]
[1760014036827,0.40946149,123490.0,123480.0,1.25209986]
[1760014037418,0.03612,123500.0,123490.0,0.0809458]
[1760014037419,0.40945859,123500.0,123490.0,0.0809458]
[1760014037624,0.37333489,123500.0,123490.0,0.4417458]
[1760014037824,0.37333489,123500.0,123490.0,1.1887458]
[1760014038333,0.40945489,123500.0,123490.0,1.1887458]
[1760014038828,0.40945489,123500.0,123490.0,0.3608]
[1760014039024,0.40945489,123500.0,123490.0,1.1078]
[1760014039526,0.40945489,123500.0,123490.0,1.1887458]
[1760014040424,0.40945489,123500.0,123490.0,0.4417458]
[1760014040629,0.40945489,123500.0,123490.0,1.1887058]
[1760014042031,0.40945489,123500.0,123490.0,0.4417458]
[1760014042032,0.32851569,123500.0,123490.0,0.4417458]
[1760014042225,0.32851569,123500.0,123490.0,1.1887058]
[1760014043030,0.40945489,123500.0,123490.0,1.1887058]
[1760014044129,0.32851569,123500.0,123490.0,1.1887058]
[1760014044328,0.40945489,123500.0,123490.0,1.1887058]
[1760014045028,0.40945489,123500.0,123490.0,0.3608]
[1760014045230,0.1757458,123490.0,123480.0,0.06335036]
[1760014045428,0.82894149,123490.0,123480.0,0.74692]
[1760014045634,1.22894149,123490.0,123480.0,0.74692]
[1760014045832,0.86814149,123490.0,123480.0,0.74692]
[1760014046033,0.1162453,123480.0,123470.0,0.0809589]
[1760014046235,0.32768569,123480.0,123470.0,1.1886789]
[1760014046424,0.29239569,123480.0,123470.0,1.1886789]
[1760014046629,0.37334799,123480.0,123470.0,1.1886789]
[1760014046830,0.37334799,123480.0,123470.0,0.4417589]
[1760014047333,0.40863799,123480.0,123470.0,1.1886789]
[1760014048033,0.40863799,123480.0,123470.0,0.4417589]
[1760014048234,0.40863799,123480.0,123470.0,1.1887189]
[1760014050432,0.46814799,123480.0,123470.0,0.3608]
[1760014050636,0.1757589,123470.0,123460.0,0.080963]
[1760014050827,0.1757589,123470.0,123460.0,0.3608]
[1760014050828,0.46815459,123470.0,123460.0,0.3608]
[1760014051032,0.1757654,123460.0,123450.0,0.441772]
[1760014051338,0.46816109,123460.0,123450.0,0.827932]
[1760014051734,0.116262,123450.0,123440.0,0.17360729]
[1760014051936,0.46816769,123450.0,123440.0,0.17360729]
[1760014052136,0.38719569,123450.0,123440.0,0.92056729]
[1760014052336,0.46816769,123450.0,123440.0,0.92056729]
[1760014052738,0.03529,123450.0,123440.0,0.17360729]
[1760014052938,0.32768569,123450.0,123440.0,0.92060729]
[1760014053442,0.03529,123470.0,123460.0,0.0809654]
[1760014053739,0.40864459,123470.0,123460.0,0.8279654]
[1760014053936,0.1162554,123460.0,123450.0,0.0809685]
[1760014054136,0.76945109,123460.0,123450.0,0.8279685]
[1760014054332,0.82896109,123460.0,123450.0,0.747]
[1760014054535,0.080972,123450.0,123440.0,0.53640789]
[1760014054735,0.29239569,123450.0,123440.0,1.28340789]
[1760014055032,0.46816769,123450.0,123440.0,0.45543269]
[1760014055233,0.82896769,123450.0,123440.0,0.17561129]
[1760014055438,0.82896769,123450.0,123440.0,0.92261129]
[1760014055638,0.82896769,123450.0,123440.0,0.92265129]
[1760014055842,0.82896769,123450.0,123440.0,0.92065129]
[1760014056039,0.82896769,123450.0,123440.0,0.09263269]
[1760014056239,1.22896769,123450.0,123440.0,0.09263269]
[1760014056439,1.22896769,123450.0,123440.0,0.83967269]
[1760014057340,1.22896769,123450.0,123440.0,0.09263269]
[1760014057341,1.52136338,123450.0,123440.0,0.09263269]
[1760014057643,1.52136338,123450.0,123440.0,0.84071269]
[1760014057842,1.22896769,123450.0,123440.0,0.84071269]
[1760014058047,0.03529,123450.0,123440.0,0.53541129]
[1760014058239,0.32768569,123460.0,123450.0,0.080972]
[1760014058434,0.01760758,123470.0,123460.0,0.0809654]
[1760014058640,0.31000327,123470.0,123460.0,1.1891254]
[1760014060244,0.39096217,123470.0,123460.0,1.1891254]
[1760014061144,0.31000327,123470.0,123460.0,1.1891254]
[1760014061341,0.29239569,123470.0,123460.0,1.5891254]
[1760014061536,0.29339569,123470.0,123460.0,1.5891254]
[1760014061737,0.001,123470.0,123460.0,1.5888454]
[1760014062243,0.29339569,123470.0,123460.0,1.5888454]
[1760014062447,0.001,123470.0,123460.0,1.1888454]
[1760014062848,0.001,123470.0,123460.0,1.5888454]
[1760014063440,0.001,123470.0,123460.0,1.5892054]
[1760014063641,0.40964819,123470.0,123460.0,0.0809654]
[1760014063843,0.41064819,123470.0,123460.0,0.4417654]
[1760014064043,0.41064819,123470.0,123460.0,1.1893654]
[1760014064750,0.32968569,123470.0,123460.0,1.1893654]
[1760014064944,0.37535459,123470.0,123460.0,1.1893654]
[1760014065146,0.002,123470.0,123460.0,1.5892454]
[1760014065350,0.002,123470.0,123460.0,1.5893254]
[1760014065849,0.29439569,123470.0,123460.0,1.5893254]
[1760014067044,0.29439569,123470.0,123460.0,1.5893654]
[1760014067245,0.002,123470.0,123460.0,1.5893654]
[1760014067851,0.002,123470.0,123460.0,0.8417654]
[1760014068244,0.002,123470.0,123460.0,1.5890054]
[1760014068748,0.002,123470.0,123460.0,0.8417654]
[1760014069148,0.115282,123450.0,123440.0,0.53440859]
[1760014069343,0.37336409,123460.0,123440.0,0.45343269]
[1760014069545,0.0809654,123460.0,123450.0,1.10812]
[1760014069844,0.0809654,123460.0,123450.0,1.10876]
[1760014070044,0.0809654,123460.0,123450.0,0.74796]
[1760014070253,0.080972,123450.0,123440.0,0.45343269]
[1760014070552,0.37336549,123460.0,123440.0,1.28357129]
[1760014071152,0.73416549,123460.0,123440.0,1.28257129]
[1760014072153,0.4767398,123460.0,123440.0,0.45343269]
[1760014072354,0.4767398,123460.0,123450.0,0.74812]
[1760014073350,0.7380452,123460.0,123450.0,0.74812]
[1760014073754,0.4767398,123460.0,123450.0,0.74812]
[1760014074556,0.4417698,123460.0,123450.0,0.74812]
[1760014074756,0.0809698,123460.0,123450.0,0.74812]
[1760014075154,0.4767398,123460.0,123450.0,0.74812]
[1760014075649,0.1159398,123460.0,123450.0,0.74812]
[1760014075855,0.7380452,123460.0,123450.0,0.74812]
[1760014076755,0.080972,123450.0,123440.0,0.09263269]
[1760014076959,0.115942,123450.0,123440.0,0.83995269]
[1760014077653,0.115942,123450.0,123440.0,0.83983269]
[1760014077851,0.476742,123450.0,123440.0,0.83983269]
[1760014078355,0.1714835,123480.0,123460.0,0.080965]
[1760014078552,0.4327889,123480.0,123470.0,0.7472]
[1760014079251,0.7935889,123480.0,123470.0,0.7472]
[1760014079752,0.115942,123450.0,123440.0,0.17461129]
[1760014079949,0.3772449,123460.0,123450.0,0.080972]
[1760014080856,0.080972,123450.0,123440.0,1.28152739]
[1760014081057,0.080972,123450.0,123440.0,1.28252739]
[1760014081254,0.3772474,123450.0,123440.0,0.09363269]
[1760014081458,0.3772474,123450.0,123440.0,1.28253129]
[1760014082356,0.115942,123450.0,123440.0,1.28253129]
[1760014083152,0.080972,123450.0,123440.0,1.28268739]
[1760014083553,0.1159386,123460.0,123450.0,0.080972]
[1760014083759,0.0809686,123460.0,123450.0,0.080972]
[1760014083960,0.0809686,123460.0,123450.0,0.828132]
[1760014084259,0.1159386,123460.0,123450.0,0.74716]
[1760014084564,0.172162,123450.0,123440.0,0.09263269]
[1760014084754,0.7942674,123450.0,123440.0,0.83983269]
[1760014085261,0.7942674,123450.0,123440.0,0.09263269]
[1760014085461,0.7942674,123450.0,123440.0,0.84007269]
[1760014085652,0.7942674,123450.0,123440.0,0.84107269]
[1760014085851,0.7942674,123450.0,123440.0,0.09363269]
[1760014086157,0.7942674,123450.0,123440.0,0.77719269]
[1760014086762,0.7942674,123450.0,123440.0,0.84087269]
[1760014087058,1.1942674,123450.0,123440.0,0.06533857]
[1760014087358,1.1942674,123450.0,123440.0,0.18184128]
[1760014087559,0.1159682,123410.0,123400.0,2.02196]
[1760014087761,0.03497,123410.0,123400.0,3.0259248]
[1760014087957,0.03497,123410.0,123400.0,3.2110848]
[1760014088162,0.3772714,123420.0,123400.0,3.2110848]
[1760014088358,0.3772714,123420.0,123400.0,2.38276]
[1760014088359,0.11604206,123410.0,123400.0,2.38276]
[1760014088664,0.53306206,123410.0,123400.0,0.83645988]
[1760014088858,0.53306206,123410.0,123400.0,0.08881988]
[1760014089163,0.0810048,123400.0,123390.0,0.0810113]
[1760014089359,7.386e-05,123410.0,123400.0,0.0820048]
[1760014089667,7.386e-05,123410.0,123400.0,1.21569993]
[1760014090059,0.11604206,123410.0,123400.0,0.38689513]
[1760014090258,0.17226206,123410.0,123400.0,0.38689513]
[1760014090461,0.17226206,123410.0,123400.0,1.13481513]
[1760014090769,0.43356746,123410.0,123400.0,0.77401513]
[1760014091767,0.37734746,123410.0,123400.0,0.85501993]
[1760014092066,0.43356746,123410.0,123400.0,0.91927303]
[1760014092264,0.79436746,123410.0,123400.0,0.91927303]
[1760014092565,0.43356746,123410.0,123400.0,0.91927303]
[1760014092766,0.37734746,123410.0,123400.0,0.91927303]
[1760014092966,0.37734746,123410.0,123400.0,0.17135303]
[1760014093169,0.43356746,123410.0,123400.0,0.91907303]
[1760014093666,0.43356746,123410.0,123400.0,0.91795303]
[1760014093870,0.43356746,123410.0,123400.0,0.83694823]
[1760014094369,0.43356746,123410.0,123400.0,0.91795303]
[1760014094567,0.43356746,123410.0,123400.0,0.91895303]
[1760014095564,0.37734746,123410.0,123400.0,0.83794823]
[1760014095869,0.37734746,123410.0,123400.0,0.91895303]
[1760014096766,0.37734746,123410.0,123400.0,0.17135303]
[1760014096970,0.43356746,123410.0,123400.0,0.83766823]
[1760014097164,0.17226206,123410.0,123400.0,0.83766823]
[1760014097372,0.43356746,123410.0,123400.0,0.09034823]
[1760014097671,0.43356746,123410.0,123400.0,0.83798823]
[1760014097871,0.79436746,123410.0,123400.0,0.09034823]
[1760014098067,0.79436746,123410.0,123400.0,0.83790823]
[1760014098262,0.09126386,123410.0,123400.0,0.53215303]
[1760014098469,7.386e-05,123410.0,123400.0,0.53215303]
[1760014098671,7.386e-05,123410.0,123400.0,1.27963303]
[1760014099775,0.35256926,123410.0,123400.0,0.53215303]
[1760014100177,0.43356746,123410.0,123400.0,1.27955303]
[1760014100371,0.29634926,123410.0,123400.0,0.53215303]
[1760014100573,0.29634926,123410.0,123400.0,1.27955303]
[1760014100767,7.386e-05,123410.0,123400.0,1.27955303]
[1760014101272,7.386e-05,123410.0,123400.0,1.29295303]
[1760014101484,7.386e-05,123410.0,123400.0,2.04031303]
[1760014101776,0.3772547,123440.0,123420.0,0.0809862]
[1760014101968,0.4334747,123440.0,123430.0,0.7474]
[1760014102377,0.7942747,123440.0,123430.0,0.7474]
[1760014103072,0.7952747,123440.0,123430.0,0.7474]
[1760014105170,0.0809851,123430.0,123420.0,0.0809916]
[1760014105375,0.4347505,123430.0,123420.0,0.8283516]
[1760014105680,0.3537654,123430.0,123420.0,0.0809916]
[1760014105882,0.3537654,123430.0,123420.0,0.8283516]
[1760014106381,0.2954054,123430.0,123420.0,0.8283516]
[1760014106984,0.2954054,123430.0,123420.0,1.1891516]
[1760014107983,0.2954054,123430.0,123420.0,0.8283516]
[1760014108284,0.3537654,123430.0,123420.0,0.8283516]
[1760014108480,0.4347505,123430.0,123420.0,0.8293516]
[1760014108678,0.3763905,123430.0,123420.0,0.8293516]
[1760014109887,0.2613054,123430.0,123420.0,1.1901516]
[1760014110581,0.2613054,123430.0,123420.0,0.4427916]
[1760014110778,0.7380502,123450.0,123430.0,0.0809851]
[1760014111082,0.2613054,123440.0,123430.0,0.4417851]
[1760014111283,0.3772483,123450.0,123440.0,0.0809786]
[1760014111486,0.2613054,123450.0,123440.0,0.0809786]
[1760014111685,0.3422774,123450.0,123440.0,0.0809786]
[1760014111887,0.3422774,123450.0,123440.0,0.8283386]
[1760014112087,0.3432774,123450.0,123440.0,0.0809786]
[1760014112284,0.3432774,123450.0,123440.0,0.8282986]
[1760014112484,0.3432774,123450.0,123440.0,0.0809786]
[1760014112686,0.3773774,123450.0,123440.0,0.0809786]
[1760014112888,0.3773774,123450.0,123440.0,0.74732]
[1760014113785,0.0809786,123440.0,123430.0,0.4417808]
[1760014113985,0.342284,123440.0,123430.0,1.1891008]
[1760014115891,0.434744,123440.0,123420.0,0.58519855]
[1760014116094,0.42300759,123430.0,123420.0,0.4417885]
[1760014116393,0.42300759,123430.0,123420.0,0.3608]
[1760014116585,0.36464759,123430.0,123420.0,0.74728]
[1760014116785,0.36464759,123430.0,123420.0,0.97168175]
[1760014116980,0.42300759,123430.0,123420.0,0.14341005]
[1760014117187,0.42300759,123430.0,123420.0,0.97168175]
[1760014117586,0.42300759,123430.0,123420.0,0.8282717]
[1760014117988,0.42300759,123430.0,123410.0,0.58520385]
[1760014118292,0.0809917,123420.0,123410.0,0.62841354]
[1760014118486,0.26145576,123420.0,123410.0,1.37569354]
[1760014119394,0.26145576,123420.0,123410.0,1.77569354]
[1760014120192,0.43490526,123430.0,123420.0,0.0809917]
[1760014120394,0.43490526,123430.0,123420.0,0.89162562]
[1760014120692,0.43490526,123430.0,123420.0,0.14434562]
[1760014120893,0.43490526,123430.0,123420.0,0.89162562]
[1760014121093,0.43490526,123430.0,123420.0,0.74728]
[1760014121392,0.43490526,123430.0,123420.0,0.8282717]
[1760014121891,0.4758762,123450.0,123430.0,0.0809851]
[1760014122089,0.34243426,123440.0,123430.0,0.0809851]
[1760014122285,0.34243426,123440.0,123430.0,0.8282651]
[1760014122488,0.74243426,123440.0,123430.0,0.0809851]
[1760014122691,0.0809851,123430.0,123420.0,0.442789]
[1760014122993,0.34244086,123430.0,123420.0,1.190029]
[1760014123184,0.34244086,123430.0,123420.0,1.189029]
[1760014123586,0.34244086,123430.0,123420.0,1.33337478]
[1760014124096,0.34244086,123430.0,123420.0,1.33437478]
[1760014124696,0.26145576,123430.0,123420.0,1.33437478]
[1760014125185,0.26145576,123430.0,123420.0,1.190029]
[1760014125386,0.26145576,123430.0,123420.0,1.33445581]
[1760014125789,0.34244086,123430.0,123420.0,1.33445581]
[1760014126187,0.26145576,123430.0,123420.0,1.33445581]
[1760014127192,0.26145576,123430.0,123420.0,1.190029]
[1760014127396,0.34244086,123430.0,123420.0,1.190029]
[1760014129395,0.37488086,123430.0,123420.0,0.0819917]
[1760014129594,0.42957086,123430.0,123420.0,0.8291917]
[1760014130192,0.34244086,123430.0,123420.0,0.0819917]
[1760014130400,0.0809851,123430.0,123420.0,0.8291917]
[1760014130697,0.26145576,123430.0,123420.0,0.8291917]
[1760014130897,0.34244086,123430.0,123420.0,0.8291917]
[1760014131494,0.42957086,123430.0,123420.0,0.8291917]
[1760014131695,0.42957086,123430.0,123420.0,0.0819917]
[1760014131894,0.42957086,123430.0,123420.0,0.8291917]
[1760014132698,0.42957086,123430.0,123420.0,0.97361851]
[1760014133199,0.29389576,123430.0,123420.0,0.97361851]
[1760014133393,0.37488086,123430.0,123420.0,0.97361851]
[1760014134093,0.37342935,123430.0,123420.0,0.97361851]
[1760014135496,0.46469935,123430.0,123420.0,0.14542681]
[1760014135694,0.40838935,123430.0,123420.0,0.89258681]
[1760014136804,0.46469935,123430.0,123420.0,0.74816]
[1760014137198,0.46469935,123430.0,123420.0,0.8291517]
[1760014137498,0.46469935,123430.0,123420.0,0.001]
[1760014137499,0.82549935,123430.0,123420.0,0.001]
[1760014137700,1.22549935,123430.0,123420.0,0.001]
[1760014137902,1.22549935,123430.0,123420.0,0.74812]
[1760014138204,1.49474708,123430.0,123420.0,0.74812]
[1760014138502,1.49474708,123430.0,123420.0,0.89270266]
[1760014141596,1.49474708,123430.0,123420.0,0.14558266]
[1760014141797,1.49474708,123430.0,123420.0,0.74812]
[1760014142508,1.49474708,123430.0,123420.0,0.89270266]
[1760014142698,1.49474708,123430.0,123420.0,0.89266266]
[1760014143504,1.49474708,123430.0,123420.0,0.74808]
[1760014144004,1.49474708,123430.0,123420.0,0.001]
[1760014144303,1.49474708,123430.0,123420.0,0.74808]
[1760014146902,1.49474708,123430.0,123420.0,0.001]
[1760014147103,0.1722617,123420.0,123410.0,0.65628]
[1760014147411,0.1722682,123410.0,123400.0,0.44005303]
[1760014147603,0.45545952,123410.0,123400.0,0.91743303]
[1760014148204,0.49041952,123410.0,123400.0,0.91743303]
[1760014148505,0.45545952,123410.0,123400.0,0.91743303]
[1760014148909,0.49041952,123410.0,123400.0,0.91743303]
[1760014150811,0.54672952,123410.0,123400.0,0.91743303]
[1760014151006,0.49041952,123410.0,123400.0,0.91743303]
[1760014151512,0.40942132,123410.0,123400.0,0.91743303]
[1760014151912,0.18723066,123410.0,123400.0,0.57035303]
[1760014152110,0.18723066,123410.0,123400.0,1.67819303]
[1760014152614,0.18723066,123410.0,123400.0,1.58919303]
[1760014153005,0.30318416,123420.0,123410.0,0.0809982]
[1760014153208,0.49041302,123420.0,123410.0,0.8279982]
[1760014154115,0.49141302,123420.0,123410.0,0.8279982]